[Event "Titled Tuesday Blitz July 27 2021"]
[White "Gasanov, Zaur"]
[Black "Krasilnikov, Evgeni"]
[WhiteFideId "34125970"]
[BlackFideId "4139739"]
[WhiteElo "2099"]
[BlackElo "2330"]
[Result "1/2-1/2"]
[Round "07"]
[TimeControl "180+1"]
[Date "2021.07.27"]
[WhiteClock "0:00:13"]
[BlackClock "0:00:08"]

1. d4 {[%clk 0:03:00]}  Nf6 {[%clk 0:02:59]} 2. Nf3 {[%clk 0:03:00]}  g6 {[%clk 0:02:58]} 3. Bf4 {[%clk 0:02:58]}  Bg7 {[%clk 0:02:59]} 4. e3 {[%clk 0:02:58]}  O-O {[%clk 0:02:58]} 5. h3 {[%clk 0:02:59]}  d6 {[%clk 0:02:58]} 6. Be2 {[%clk 0:02:58]}  c5 {[%clk 0:02:58]} 7. O-O {[%clk 0:02:58]}  b6 {[%clk 0:02:58]} 8. c4 {[%clk 0:02:57]}  Bb7 {[%clk 0:02:58]} 9. Nc3 {[%clk 0:02:57]}  Ne4 {[%clk 0:02:57]} 10. Nxe4 {[%clk 0:02:56]}  Bxe4 {[%clk 0:02:58]} 11. Qd2 {[%clk 0:02:54]}  Nc6 {[%clk 0:02:57]} 12. d5 {[%clk 0:02:46]}  Bxf3 {[%clk 0:02:48]} 13. Bxf3 {[%clk 0:02:43]}  Ne5 {[%clk 0:02:48]} 14. Be2 {[%clk 0:02:43]}  a6 {[%clk 0:02:44]} 15. Rac1 {[%clk 0:02:40]}  b5 {[%clk 0:02:34]} 16. b3 {[%clk 0:02:33]}  bxc4 {[%clk 0:02:30]} 17. bxc4 {[%clk 0:02:33]}  Qc7 {[%clk 0:02:26]} 18. Bg3 {[%clk 0:02:28]}  Rab8 {[%clk 0:02:24]} 19. f4 {[%clk 0:02:24]}  Rb2 {[%clk 0:02:18]} 20. Rc2 {[%clk 0:02:10]}  Rxc2 {[%clk 0:02:16]} 21. Qxc2 {[%clk 0:02:11]}  Nd7 {[%clk 0:02:15]} 22. Rb1 {[%clk 0:02:08]}  Rb8 {[%clk 0:02:14]} 23. Be1 {[%clk 0:02:07]}  Rxb1 {[%clk 0:02:08]} 24. Qxb1 {[%clk 0:02:06]}  Qb6 {[%clk 0:02:08]} 25. Qb3 {[%clk 0:01:50]}  Qxb3 {[%clk 0:01:54]} 26. axb3 {[%clk 0:01:48]}  Kf8 {[%clk 0:01:41]} 27. Kf1 {[%clk 0:01:48]}  Ke8 {[%clk 0:01:36]} 28. Bd3 {[%clk 0:01:43]}  Kd8 {[%clk 0:01:35]} 29. Ke2 {[%clk 0:01:42]}  Kc7 {[%clk 0:01:25]} 30. Ba5+ {[%clk 0:01:41]}  Kc8 {[%clk 0:01:24]} 31. g4 {[%clk 0:01:40]}  Nb8 {[%clk 0:01:20]} 32. h4 {[%clk 0:01:36]}  Nd7 {[%clk 0:01:19]} 33. Kf3 {[%clk 0:01:34]}  Nf6 {[%clk 0:01:16]} 34. h5 {[%clk 0:01:21]}  Nd7 {[%clk 0:01:10]} 35. Bc2 {[%clk 0:01:16]}  Bb2 {[%clk 0:00:54]} 36. g5 {[%clk 0:01:05]}  Bg7 {[%clk 0:00:53]} 37. Kg4 {[%clk 0:01:03]}  Bb2 {[%clk 0:00:50]} 38. Kh4 {[%clk 0:00:52]}  Bc1 {[%clk 0:00:47]} 39. f5 {[%clk 0:00:43]}  Ne5 {[%clk 0:00:40]} 40. fxg6 {[%clk 0:00:32]}  fxg6 {[%clk 0:00:40]} 41. Bc3 {[%clk 0:00:31]}  Bxe3 {[%clk 0:00:35]} 42. Bxe5 {[%clk 0:00:30]}  dxe5 {[%clk 0:00:36]} 43. hxg6 {[%clk 0:00:30]}  hxg6 {[%clk 0:00:36]} 44. Bxg6 {[%clk 0:00:30]}  Kd7 {[%clk 0:00:31]} 45. Bf7 {[%clk 0:00:29]}  e4 {[%clk 0:00:26]} 46. Kg4 {[%clk 0:00:27]}  Kd6 {[%clk 0:00:24]} 47. Kf5 {[%clk 0:00:22]}  a5 {[%clk 0:00:23]} 48. g6 {[%clk 0:00:20]}  Bd4 {[%clk 0:00:22]} 49. Kxe4 {[%clk 0:00:20]}  Bg7 {[%clk 0:00:22]} 50. Kd3 {[%clk 0:00:19]}  Bf6 {[%clk 0:00:22]} 51. Kc2 {[%clk 0:00:19]}  Bg7 {[%clk 0:00:22]} 52. Kb1 {[%clk 0:00:19]}  Bf6 {[%clk 0:00:21]} 53. Ka2 {[%clk 0:00:19]}  Kc7 {[%clk 0:00:22]} 54. Ka3 {[%clk 0:00:19]}  Kb6 {[%clk 0:00:22]} 55. Ka4 {[%clk 0:00:20]}  Bg7 {[%clk 0:00:22]} 56. Ka3 {[%clk 0:00:20]}  Bf6 {[%clk 0:00:22]} 57. Ka2 {[%clk 0:00:21]}  Bg7 {[%clk 0:00:22]} 58. Kb1 {[%clk 0:00:20]}  Kc7 {[%clk 0:00:21]} 59. Ka2 {[%clk 0:00:18]}  Kb6 {[%clk 0:00:21]} 60. Be6 {[%clk 0:00:19]}  Bf6 {[%clk 0:00:21]} 61. Bf5 {[%clk 0:00:18]}  Bg7 {[%clk 0:00:20]} 62. Kb1 {[%clk 0:00:18]}  Bf6 {[%clk 0:00:20]} 63. Kc2 {[%clk 0:00:18]}  Kc7 {[%clk 0:00:20]} 64. Kd3 {[%clk 0:00:19]}  Kd6 {[%clk 0:00:20]} 65. Ke4 {[%clk 0:00:19]}  Bg7 {[%clk 0:00:20]} 66. Bc8 {[%clk 0:00:19]}  Bf6 {[%clk 0:00:20]} 67. Kf5 {[%clk 0:00:18]}  Bg7 {[%clk 0:00:20]} 68. Kg5 {[%clk 0:00:18]}  Ke5 {[%clk 0:00:17]} 69. Bd7 {[%clk 0:00:18]}  Bf8 {[%clk 0:00:16]} 70. Ba4 {[%clk 0:00:14]}  Bg7 {[%clk 0:00:16]} 71. Kg4 {[%clk 0:00:13]}  Bf8 {[%clk 0:00:13]} 72. Kf3 {[%clk 0:00:13]}  Bh6 {[%clk 0:00:13]} 73. Ke2 {[%clk 0:00:12]}  Bg7 {[%clk 0:00:11]} 74. Kd3 {[%clk 0:00:12]}  Kd6 {[%clk 0:00:09]} 75. Ke4 {[%clk 0:00:12]}  Bf6 {[%clk 0:00:09]} 76. Kf5 {[%clk 0:00:13]}  Bg7 {[%clk 0:00:09]} 77. Bb5 {[%clk 0:00:13]}  Bf6 {[%clk 0:00:09]} 78. Bc6 {[%clk 0:00:11]}  Bg7 {[%clk 0:00:09]} 79. Be8 {[%clk 0:00:10]}  Bf6 {[%clk 0:00:08]} 80. Bf7 {[%clk 0:00:10]}  Bg7 {[%clk 0:00:08]} 81. Kg5 {[%clk 0:00:10]}  Ke5 {[%clk 0:00:07]} 82. Be6 {[%clk 0:00:10]}  Bf8 {[%clk 0:00:06]} 83. g7 {[%clk 0:00:09]}  Bxg7 {[%clk 0:00:06]} 84. Kg6 {[%clk 0:00:09]}  Bf6 {[%clk 0:00:06]} 85. Kf7 {[%clk 0:00:10]}  Bh4 {[%clk 0:00:06]} 86. Ke8 {[%clk 0:00:09]}  Kd6 {[%clk 0:00:05]} 87. Kd8 {[%clk 0:00:09]}  Be1 {[%clk 0:00:05]} 88. Kc8 {[%clk 0:00:10]}  Bd2 {[%clk 0:00:05]} 89. Kb7 {[%clk 0:00:11]}  Bc3 {[%clk 0:00:05]} 90. Kb6 {[%clk 0:00:12]}  Bb4 {[%clk 0:00:05]} 91. Kb5 {[%clk 0:00:12]}  Bc3 {[%clk 0:00:04]} 92. Bf5 {[%clk 0:00:12]}  Bb4 {[%clk 0:00:05]} 93. Bc2 {[%clk 0:00:12]}  Bc3 {[%clk 0:00:06]} 94. Ka4 {[%clk 0:00:12]}  Bb4 {[%clk 0:00:07]} 95. Kb5 {[%clk 0:00:13]}  Bc3 {[%clk 0:00:07]} 96. Bd3 {[%clk 0:00:12]}  Bb4 {[%clk 0:00:08]} 97. Bc2 {[%clk 0:00:13]} 1/2-1/2


[Site "https://www.chess.com"]

[Event "Titled Tuesday Blitz July 27 2021"]
[White "Ginzburg, Yakov"]
[Black "Tomiello, Mateus Costamilan"]
[WhiteFideId "4157176"]
[BlackFideId "22701958"]
[WhiteElo "2276"]
[BlackElo "1995"]
[Result "0-1"]
[Round "07"]
[TimeControl "180+1"]
[Date "2021.07.27"]
[WhiteClock "0:00:18"]
[BlackClock "0:00:05"]

1. e4 {[%clk 0:02:59]}  e5 {[%clk 0:03:00]} 2. Nf3 {[%clk 0:02:59]}  Nc6 {[%clk 0:03:00]} 3. Bb5 {[%clk 0:02:59]}  a6 {[%clk 0:02:58]} 4. Bxc6 {[%clk 0:02:59]}  dxc6 {[%clk 0:02:58]} 5. O-O {[%clk 0:03:00]}  Bg4 {[%clk 0:02:58]} 6. h3 {[%clk 0:03:00]}  h5 {[%clk 0:02:58]} 7. d4 {[%clk 0:03:00]}  Bxf3 {[%clk 0:02:54]} 8. Qxf3 {[%clk 0:03:00]}  exd4 {[%clk 0:02:52]} 9. Rd1 {[%clk 0:02:57]}  c5 {[%clk 0:02:26]} 10. c3 {[%clk 0:02:56]}  g6 {[%clk 0:02:11]} 11. cxd4 {[%clk 0:02:51]}  cxd4 {[%clk 0:02:11]} 12. Be3 {[%clk 0:02:43]}  c5 {[%clk 0:02:09]} 13. e5 {[%clk 0:02:43]}  Qd7 {[%clk 0:02:03]} 14. Bg5 {[%clk 0:02:41]}  Bh6 {[%clk 0:01:46]} 15. Bh4 {[%clk 0:02:10]}  Bg7 {[%clk 0:01:02]} 16. Nd2 {[%clk 0:01:59]}  Nh6 {[%clk 0:00:58]} 17. Ne4 {[%clk 0:01:57]}  Nf5 {[%clk 0:00:33]} 18. Bf6 {[%clk 0:01:42]}  O-O {[%clk 0:00:27]} 19. Bxg7 {[%clk 0:01:39]}  Kxg7 {[%clk 0:00:26]} 20. Nf6 {[%clk 0:01:37]}  Qe6 {[%clk 0:00:22]} 21. Re1 {[%clk 0:01:36]}  c4 {[%clk 0:00:21]} 22. g4 {[%clk 0:01:33]}  hxg4 {[%clk 0:00:18]} 23. hxg4 {[%clk 0:01:33]}  Ne7 {[%clk 0:00:19]} 24. Kg2 {[%clk 0:01:25]}  Rh8 {[%clk 0:00:19]} 25. Rh1 {[%clk 0:01:08]}  Qxe5 {[%clk 0:00:18]} 26. Ne4 {[%clk 0:00:58]}  Nd5 {[%clk 0:00:17]} 27. Kf1 {[%clk 0:00:43]}  Nf4 {[%clk 0:00:15]} 28. Re1 {[%clk 0:00:30]}  Rxh1+ {[%clk 0:00:15]} 29. Qxh1 {[%clk 0:00:28]}  Rh8 {[%clk 0:00:15]} 30. Qf3 {[%clk 0:00:28]}  Rh3 {[%clk 0:00:14]} 31. Ng3 {[%clk 0:00:29]}  Qd6 {[%clk 0:00:11]} 32. Re4 {[%clk 0:00:26]}  Ne6 {[%clk 0:00:06]} 33. Nh5+ {[%clk 0:00:27]}  gxh5 {[%clk 0:00:05]} 34. Qxh3 {[%clk 0:00:27]}  Ng5 {[%clk 0:00:05]} 35. Qg2 {[%clk 0:00:23]}  Nxe4 {[%clk 0:00:06]} 36. gxh5+ {[%clk 0:00:24]}  Kh8 {[%clk 0:00:05]} 37. Qxe4 {[%clk 0:00:24]}  d3 {[%clk 0:00:05]} 38. Qe8+ {[%clk 0:00:22]}  Kg7 {[%clk 0:00:05]} 39. h6+ {[%clk 0:00:22]}  Kxh6 {[%clk 0:00:05]} 40. Qxf7 {[%clk 0:00:22]}  d2 {[%clk 0:00:05]} 41. Kg2 {[%clk 0:00:20]}  d1=Q {[%clk 0:00:05]} 42. Qxc4 {[%clk 0:00:18]}  Q1d5+ {[%clk 0:00:05]} 0-1


[Site "https://www.chess.com"]

[Event "Titled Tuesday Blitz July 27 2021"]
[White "Gonzalez, Francisco Silva"]
[Black "Mirzoev, Azer"]
[WhiteFideId "1512285"]
[BlackFideId "13400304"]
[WhiteElo "2159"]
[BlackElo "2525"]
[Result "0-1"]
[Round "07"]
[TimeControl "180+1"]
[Date "2021.07.27"]
[WhiteClock "0:01:04"]
[BlackClock "0:02:26"]

1. d4 {[%clk 0:02:45]}  c6 {[%clk 0:03:00]} 2. c4 {[%clk 0:02:44]}  d5 {[%clk 0:03:01]} 3. Nc3 {[%clk 0:02:44]}  Nf6 {[%clk 0:03:01]} 4. e3 {[%clk 0:02:45]}  e6 {[%clk 0:03:01]} 5. Nf3 {[%clk 0:02:44]}  Nbd7 {[%clk 0:03:02]} 6. a3 {[%clk 0:02:43]}  Bd6 {[%clk 0:03:00]} 7. b4 {[%clk 0:02:43]}  O-O {[%clk 0:03:00]} 8. Bb2 {[%clk 0:02:44]}  Re8 {[%clk 0:02:58]} 9. h3 {[%clk 0:02:44]}  e5 {[%clk 0:02:49]} 10. dxe5 {[%clk 0:02:43]}  Nxe5 {[%clk 0:02:50]} 11. Nxe5 {[%clk 0:02:42]}  Bxe5 {[%clk 0:02:50]} 12. Be2 {[%clk 0:02:39]}  d4 {[%clk 0:02:49]} 13. exd4 {[%clk 0:02:36]}  Bxd4 {[%clk 0:02:50]} 14. O-O {[%clk 0:02:35]}  Bf5 {[%clk 0:02:49]} 15. Na4 {[%clk 0:02:30]}  Bxb2 {[%clk 0:02:47]} 16. Nxb2 {[%clk 0:02:29]}  Qc7 {[%clk 0:02:47]} 17. Bf3 {[%clk 0:02:28]}  Rad8 {[%clk 0:02:46]} 18. Qb3 {[%clk 0:02:26]}  Be4 {[%clk 0:02:43]} 19. Rae1 {[%clk 0:02:24]}  g6 {[%clk 0:02:39]} 20. Re3 {[%clk 0:02:23]}  Bxf3 {[%clk 0:02:38]} 21. Rxf3 {[%clk 0:02:23]}  Ne4 {[%clk 0:02:38]} 22. Rd1 {[%clk 0:01:40]}  Nd2 {[%clk 0:02:36]} 23. Qc3 {[%clk 0:01:26]}  Nxf3+ {[%clk 0:02:34]} 24. Qxf3 {[%clk 0:01:27]}  Rxd1+ {[%clk 0:02:32]} 25. Qxd1 {[%clk 0:01:27]}  Qe5 {[%clk 0:02:32]} 26. Qb3 {[%clk 0:01:26]}  Qe1+ {[%clk 0:02:31]} 27. Kh2 {[%clk 0:01:27]}  Qxf2 {[%clk 0:02:31]} 28. Nd3 {[%clk 0:01:23]}  Qd4 {[%clk 0:02:29]} 29. Qc2 {[%clk 0:01:20]}  Re3 {[%clk 0:02:27]} 30. Nf2 {[%clk 0:01:03]}  Qf4+ {[%clk 0:02:27]} 31. g3 {[%clk 0:01:04]}  Qxg3+ {[%clk 0:02:26]} 0-1


[Site "https://www.chess.com"]

[Event "Titled Tuesday Blitz July 27 2021"]
[White "Gubanov, Oleg"]
[Black "Baskin, Robert"]
[WhiteFideId "14115115"]
[BlackFideId "24662402"]
[WhiteElo "2251"]
[BlackElo "2462"]
[Result "1/2-1/2"]
[Round "07"]
[TimeControl "180+1"]
[Date "2021.07.27"]
[WhiteClock "0:00:56"]
[BlackClock "0:01:33"]

1. e4 {[%clk 0:03:00]}  c5 {[%clk 0:02:56]} 2. Nf3 {[%clk 0:02:59]}  d6 {[%clk 0:02:56]} 3. c3 {[%clk 0:03:00]}  Nf6 {[%clk 0:02:56]} 4. Bc4 {[%clk 0:02:59]}  Nc6 {[%clk 0:02:51]} 5. Qe2 {[%clk 0:02:31]}  Bg4 {[%clk 0:02:49]} 6. h3 {[%clk 0:02:22]}  Bxf3 {[%clk 0:02:48]} 7. Qxf3 {[%clk 0:02:22]}  g6 {[%clk 0:02:44]} 8. O-O {[%clk 0:02:21]}  Bg7 {[%clk 0:02:41]} 9. Qe2 {[%clk 0:02:16]}  O-O {[%clk 0:02:40]} 10. f4 {[%clk 0:02:15]}  a6 {[%clk 0:02:28]} 11. d3 {[%clk 0:02:12]}  Na5 {[%clk 0:02:27]} 12. Nd2 {[%clk 0:02:04]}  b5 {[%clk 0:02:25]} 13. Bb3 {[%clk 0:02:04]}  Nxb3 {[%clk 0:02:25]} 14. axb3 {[%clk 0:02:03]}  Nd7 {[%clk 0:02:13]} 15. f5 {[%clk 0:01:55]}  b4 {[%clk 0:02:09]} 16. c4 {[%clk 0:01:33]}  Ne5 {[%clk 0:02:08]} 17. Nf3 {[%clk 0:01:31]}  e6 {[%clk 0:02:06]} 18. Nxe5 {[%clk 0:01:18]}  Bxe5 {[%clk 0:02:07]} 19. Bh6 {[%clk 0:01:13]}  Re8 {[%clk 0:02:04]} 20. Qg4 {[%clk 0:01:07]}  exf5 {[%clk 0:01:47]} 21. exf5 {[%clk 0:01:06]}  Qf6 {[%clk 0:01:46]} 22. Bg5 {[%clk 0:01:05]}  Bd4+ {[%clk 0:01:42]} 23. Kh1 {[%clk 0:01:03]}  Qe5 {[%clk 0:01:41]} 24. Bf4 {[%clk 0:00:56]}  Qxf5 {[%clk 0:01:33]} 25. Qxf5 {[%clk 0:00:56]}  g5 {[%clk 0:01:33]} 1/2-1/2


[Site "https://www.chess.com"]

[Event "Titled Tuesday Blitz July 27 2021"]
[White "Horobetz, Graham"]
[Black "Petukhov, Dmitry"]
[WhiteFideId "2047322"]
[BlackFideId "4142748"]
[WhiteElo "2621"]
[BlackElo "2356"]
[Result "1/2-1/2"]
[Round "07"]
[TimeControl "180+1"]
[Date "2021.07.27"]
[WhiteClock "0:00:13"]
[BlackClock "0:00:18"]

1. e4 {[%clk 0:02:56]}  c5 {[%clk 0:02:58]} 2. Nf3 {[%clk 0:02:57]}  d6 {[%clk 0:02:58]} 3. d4 {[%clk 0:02:57]}  cxd4 {[%clk 0:02:59]} 4. Nxd4 {[%clk 0:02:58]}  Nf6 {[%clk 0:02:59]} 5. Nc3 {[%clk 0:02:59]}  Nc6 {[%clk 0:03:00]} 6. Be2 {[%clk 0:02:56]}  e5 {[%clk 0:02:58]} 7. Nb3 {[%clk 0:02:54]}  Be7 {[%clk 0:02:57]} 8. O-O {[%clk 0:02:53]}  O-O {[%clk 0:02:58]} 9. f4 {[%clk 0:02:54]}  a6 {[%clk 0:02:54]} 10. Kh1 {[%clk 0:02:50]}  b5 {[%clk 0:02:53]} 11. a4 {[%clk 0:02:50]}  b4 {[%clk 0:02:51]} 12. Nd5 {[%clk 0:02:51]}  Nxd5 {[%clk 0:02:48]} 13. exd5 {[%clk 0:02:45]}  Na5 {[%clk 0:02:44]} 14. Nxa5 {[%clk 0:02:35]}  Qxa5 {[%clk 0:02:42]} 15. fxe5 {[%clk 0:02:36]}  dxe5 {[%clk 0:02:41]} 16. d6 {[%clk 0:02:37]}  Bd8 {[%clk 0:02:27]} 17. Bc4 {[%clk 0:02:20]}  Qc5 {[%clk 0:02:14]} 18. Bxf7+ {[%clk 0:02:12]}  Rxf7 {[%clk 0:02:15]} 19. Rxf7 {[%clk 0:02:12]}  Kxf7 {[%clk 0:01:52]} 20. Qf3+ {[%clk 0:02:11]}  Bf5 {[%clk 0:01:38]} 21. Qxa8 {[%clk 0:01:32]}  Qxd6 {[%clk 0:01:35]} 22. Be3 {[%clk 0:01:22]}  Bxc2 {[%clk 0:01:32]} 23. Qb7+ {[%clk 0:01:16]}  Kg6 {[%clk 0:01:28]} 24. Rc1 {[%clk 0:00:59]}  b3 {[%clk 0:01:18]} 25. Qc8 {[%clk 0:00:47]}  h6 {[%clk 0:01:05]} 26. h3 {[%clk 0:00:37]}  Bf6 {[%clk 0:00:51]} 27. Qc5 {[%clk 0:00:21]}  Qxc5 {[%clk 0:00:45]} 28. Bxc5 {[%clk 0:00:21]}  e4 {[%clk 0:00:45]} 29. Ba3 {[%clk 0:00:21]}  Bg5 {[%clk 0:00:32]} 30. Re1 {[%clk 0:00:19]}  Bd2 {[%clk 0:00:32]} 31. Re2 {[%clk 0:00:18]}  e3 {[%clk 0:00:32]} 32. Bc5 {[%clk 0:00:18]}  Bd3 {[%clk 0:00:23]} 33. Rxe3 {[%clk 0:00:17]}  Bxe3 {[%clk 0:00:18]} 34. Bxe3 {[%clk 0:00:18]}  Kf5 {[%clk 0:00:18]} 35. a5 {[%clk 0:00:17]}  g6 {[%clk 0:00:19]} 36. Bxh6 {[%clk 0:00:16]}  Ke4 {[%clk 0:00:19]} 37. Bd2 {[%clk 0:00:16]}  Bb5 {[%clk 0:00:19]} 38. Kh2 {[%clk 0:00:16]}  Kf5 {[%clk 0:00:19]} 39. g4+ {[%clk 0:00:15]}  Kf6 {[%clk 0:00:18]} 40. Kg3 {[%clk 0:00:16]}  Ke6 {[%clk 0:00:18]} 41. Kf4 {[%clk 0:00:16]}  Kf6 {[%clk 0:00:19]} 42. Bc3+ {[%clk 0:00:15]}  Kf7 {[%clk 0:00:17]} 43. Kg5 {[%clk 0:00:16]}  Bd3 {[%clk 0:00:18]} 44. Kh6 {[%clk 0:00:16]}  Bc2 {[%clk 0:00:18]} 45. h4 {[%clk 0:00:16]}  Bd3 {[%clk 0:00:19]} 46. Bd4 {[%clk 0:00:12]}  Bc2 {[%clk 0:00:20]} 47. Kg5 {[%clk 0:00:12]}  Bd3 {[%clk 0:00:21]} 48. Kf4 {[%clk 0:00:12]}  Ke6 {[%clk 0:00:21]} 49. Bf2 {[%clk 0:00:11]}  Bc2 {[%clk 0:00:21]} 50. Ke3 {[%clk 0:00:11]}  Bb1 {[%clk 0:00:20]} 51. Kd4 {[%clk 0:00:11]}  Bc2 {[%clk 0:00:20]} 52. Kc5 {[%clk 0:00:11]}  Bd1 {[%clk 0:00:20]} 53. h5 {[%clk 0:00:10]}  gxh5 {[%clk 0:00:18]} 54. gxh5 {[%clk 0:00:11]}  Bxh5 {[%clk 0:00:17]} 55. Kc4 {[%clk 0:00:11]}  Bd1 {[%clk 0:00:17]} 56. Kd3 {[%clk 0:00:12]}  Bc2+ {[%clk 0:00:17]} 57. Kc3 {[%clk 0:00:12]}  Kd5 {[%clk 0:00:17]} 58. Bb6 {[%clk 0:00:13]}  Kc6 {[%clk 0:00:17]} 59. Bd8 {[%clk 0:00:13]}  Kb7 {[%clk 0:00:18]} 1/2-1/2


[Site "https://www.chess.com"]

[Event "Titled Tuesday Blitz July 27 2021"]
[White "Ismagilov, Damir"]
[Black "Tokman, Ariel"]
[WhiteFideId "34199982"]
[BlackFideId "117420"]
[WhiteElo "2075"]
[BlackElo "2345"]
[Result "1-0"]
[Round "07"]
[TimeControl "180+1"]
[Date "2021.07.27"]
[WhiteClock "0:00:32"]
[BlackClock "0:00:07"]

1. d4 {[%clk 0:03:00]}  d5 {[%clk 0:02:57]} 2. c4 {[%clk 0:03:00]}  c6 {[%clk 0:02:57]} 3. Nc3 {[%clk 0:03:00]}  Nf6 {[%clk 0:02:56]} 4. Nf3 {[%clk 0:02:59]}  a6 {[%clk 0:02:54]} 5. cxd5 {[%clk 0:02:57]}  cxd5 {[%clk 0:02:54]} 6. Bf4 {[%clk 0:02:57]}  Nc6 {[%clk 0:02:54]} 7. Rc1 {[%clk 0:02:56]}  Bg4 {[%clk 0:02:51]} 8. Ne5 {[%clk 0:02:54]}  Bd7 {[%clk 0:02:49]} 9. e3 {[%clk 0:02:47]}  e6 {[%clk 0:02:49]} 10. Bd3 {[%clk 0:02:46]}  Be7 {[%clk 0:02:36]} 11. g4 {[%clk 0:02:42]}  h6 {[%clk 0:02:26]} 12. h4 {[%clk 0:02:35]}  Rc8 {[%clk 0:02:25]} 13. Ke2 {[%clk 0:02:33]}  Nxe5 {[%clk 0:02:16]} 14. dxe5 {[%clk 0:02:32]}  Ne4 {[%clk 0:02:04]} 15. Nxe4 {[%clk 0:02:23]}  dxe4 {[%clk 0:02:05]} 16. Bxe4 {[%clk 0:02:22]}  Rxc1 {[%clk 0:01:52]} 17. Qxc1 {[%clk 0:02:23]}  Bxh4 {[%clk 0:01:27]} 18. Kf3 {[%clk 0:01:54]}  Be7 {[%clk 0:01:13]} 19. Bxb7 {[%clk 0:01:51]}  Qb6 {[%clk 0:01:07]} 20. Be4 {[%clk 0:01:49]}  O-O {[%clk 0:01:04]} 21. g5 {[%clk 0:01:39]}  Rc8 {[%clk 0:00:45]} 22. Qd2 {[%clk 0:01:35]}  Bc6 {[%clk 0:00:43]} 23. Qd3 {[%clk 0:01:25]}  hxg5 {[%clk 0:00:37]} 24. Bg3 {[%clk 0:01:17]}  Bxe4+ {[%clk 0:00:24]} 25. Qxe4 {[%clk 0:01:18]}  Qc6 {[%clk 0:00:24]} 26. Qxc6 {[%clk 0:01:08]}  Rxc6 {[%clk 0:00:25]} 27. Rd1 {[%clk 0:01:00]}  f5 {[%clk 0:00:22]} 28. exf6 {[%clk 0:01:00]}  gxf6 {[%clk 0:00:23]} 29. Rd7 {[%clk 0:00:59]}  Kf7 {[%clk 0:00:23]} 30. Rb7 {[%clk 0:00:59]}  e5 {[%clk 0:00:13]} 31. Ke4 {[%clk 0:00:58]}  Ke6 {[%clk 0:00:12]} 32. Kd3 {[%clk 0:00:49]}  Bd6 {[%clk 0:00:09]} 33. b4 {[%clk 0:00:47]}  f5 {[%clk 0:00:08]} 34. e4 {[%clk 0:00:45]}  fxe4+ {[%clk 0:00:06]} 35. Kxe4 {[%clk 0:00:46]}  Rc4+ {[%clk 0:00:06]} 36. Kd3 {[%clk 0:00:41]}  Rxb4 {[%clk 0:00:07]} 37. Rg7 {[%clk 0:00:39]}  e4+ {[%clk 0:00:07]} 38. Kc3 {[%clk 0:00:33]}  Rb5 {[%clk 0:00:07]} 39. Rg6+ {[%clk 0:00:33]}  Kf5 {[%clk 0:00:06]} 40. Rxd6 {[%clk 0:00:34]}  Rc5+ {[%clk 0:00:05]} 41. Kd4 {[%clk 0:00:33]}  Rb5 {[%clk 0:00:04]} 42. Rd5+ {[%clk 0:00:33]}  Rxd5+ {[%clk 0:00:04]} 43. Kxd5 {[%clk 0:00:33]}  e3 {[%clk 0:00:04]} 44. fxe3 {[%clk 0:00:33]}  Kg4 {[%clk 0:00:05]} 45. Bd6 {[%clk 0:00:33]}  Kf3 {[%clk 0:00:05]} 46. e4 {[%clk 0:00:34]}  g4 {[%clk 0:00:06]} 47. e5 {[%clk 0:00:32]}  g3 {[%clk 0:00:07]} 48. Bc5 {[%clk 0:00:32]} 1-0


[Site "https://www.chess.com"]

[Event "Titled Tuesday Blitz July 27 2021"]
[White "Jeet, Jain"]
[Black "Liyanage, Ranindu Dilshan"]
[WhiteFideId "5073022"]
[BlackFideId "9915834"]
[WhiteElo "2085"]
[BlackElo "1839"]
[Result "1-0"]
[Round "07"]
[TimeControl "180+1"]
[Date "2021.07.27"]
[WhiteClock "0:01:23"]
[BlackClock "0:00:08"]

1. e4 {[%clk 0:03:00]}  c5 {[%clk 0:02:57]} 2. Nf3 {[%clk 0:03:01]}  d6 {[%clk 0:02:56]} 3. Bb5+ {[%clk 0:03:01]}  Nd7 {[%clk 0:02:55]} 4. c3 {[%clk 0:03:01]}  Nf6 {[%clk 0:02:53]} 5. Qe2 {[%clk 0:03:01]}  a6 {[%clk 0:02:52]} 6. Ba4 {[%clk 0:03:01]}  e6 {[%clk 0:02:49]} 7. O-O {[%clk 0:03:01]}  b5 {[%clk 0:02:43]} 8. Bc2 {[%clk 0:03:01]}  Bb7 {[%clk 0:02:43]} 9. d4 {[%clk 0:03:01]}  Be7 {[%clk 0:02:38]} 10. Re1 {[%clk 0:03:01]}  Rc8 {[%clk 0:02:32]} 11. a4 {[%clk 0:02:55]}  cxd4 {[%clk 0:02:26]} 12. cxd4 {[%clk 0:02:47]}  b4 {[%clk 0:02:14]} 13. Bd3 {[%clk 0:02:47]}  a5 {[%clk 0:02:10]} 14. Nbd2 {[%clk 0:02:47]}  h6 {[%clk 0:02:02]} 15. Nf1 {[%clk 0:02:47]}  d5 {[%clk 0:01:53]} 16. Ng3 {[%clk 0:02:44]}  dxe4 {[%clk 0:01:53]} 17. Nxe4 {[%clk 0:02:44]}  Nxe4 {[%clk 0:01:53]} 18. Bxe4 {[%clk 0:02:44]}  Bxe4 {[%clk 0:01:54]} 19. Qxe4 {[%clk 0:02:45]}  Nf6 {[%clk 0:01:54]} 20. Qe2 {[%clk 0:02:35]}  O-O {[%clk 0:01:54]} 21. Bf4 {[%clk 0:02:35]}  Qb6 {[%clk 0:01:47]} 22. Be5 {[%clk 0:02:34]}  Rc6 {[%clk 0:01:36]} 23. Rec1 {[%clk 0:02:25]}  Rfc8 {[%clk 0:01:35]} 24. Rxc6 {[%clk 0:02:25]}  Qxc6 {[%clk 0:01:35]} 25. h3 {[%clk 0:02:17]}  Qc2 {[%clk 0:01:31]} 26. Qa6 {[%clk 0:02:17]}  Rc6 {[%clk 0:01:05]} 27. Qxa5 {[%clk 0:02:17]}  Qxb2 {[%clk 0:00:56]} 28. d5 {[%clk 0:02:08]}  Rc1+ {[%clk 0:00:47]} 29. Kh2 {[%clk 0:02:08]}  Qxe5+ {[%clk 0:00:20]} 30. Nxe5 {[%clk 0:02:08]}  Rxa1 {[%clk 0:00:21]} 31. dxe6 {[%clk 0:01:57]}  fxe6 {[%clk 0:00:22]} 32. Qb6 {[%clk 0:01:54]}  Bf8 {[%clk 0:00:17]} 33. Qxe6+ {[%clk 0:01:53]}  Kh7 {[%clk 0:00:14]} 34. Qf5+ {[%clk 0:01:52]}  Kg8 {[%clk 0:00:14]} 35. Ng6 {[%clk 0:01:50]}  Bd6+ {[%clk 0:00:12]} 36. g3 {[%clk 0:01:48]}  Rxa4 {[%clk 0:00:12]} 37. Qd3 {[%clk 0:01:24]}  Ne8 {[%clk 0:00:08]} 38. Qb3+ {[%clk 0:01:23]} 1-0


[Site "https://www.chess.com"]